[Event "1st Uppsala Festival 2022"]
[Site "Uppsala"]
[Date "2022.08.09"]
[Round "1.1"]
[White "Savitha Shri B"]
[Black "Sriram, Jha"]
[Result "1/2-1/2"]
[ECO "C77"]
[WhiteElo "2278"]
[BlackElo "2361"]
[Annotator "RC"]
[PlyCount "97"]
[EventDate "2022.08.09"]
[EventType "tourn"]
[EventCountry "SWE"]
[SourceTitle "playchess.com"]
[Source "ChessBase"]
[SourceQuality "1"]
[TimeControl "5400+30"]

1. e4 {[%emt 0:00:16]} e5 {[%emt 0:05:48]} 2. Nf3 {[%emt 0:00:10]} Nc6 {[%emt 0:00:14]} 3. Bb5 {[%emt 0:00:12]} a6 {[%emt 0:00:04]} 4. Ba4 {[%emt 0:00:05]} Nf6 {[%emt 0:00:04]} 5. d3 {[%emt 0:00:29]} d6 {[%emt 0:00:31]} 6. c3 {[%emt 0:05:54]} Be7 {[%emt 0:06:13]} 7. h3 {[%emt 0:01:50]} O-O {[%emt 0:06:06]} 8. Nbd2 {[%emt 0:03:52]} b5 {[%emt 0:05:24]} 9. Bb3 {[%emt 0:03:31]} Na5 {[%emt 0:00:21]} 10. Bc2 {[%emt 0:00:24]} c5 {[%emt 0:00:05]} 11. Nf1 {[%emt 0:05:33]} Nc6 {[%emt 0:07:33]} 12. Ng3 {[%emt 0:08:36]} d5 {[%emt 0:03:12]} 13. Qe2 {[%emt 0:05:24]} d4 {[%emt 0:00:25]} 14. O-O {[%emt 0:01:34]} Re8 {[%emt 0:02:38]} 15. Bb3 {[%emt 0:06:20]} Be6 {[%emt 0:07:27]} 16. Bxe6 {[%emt 0:07:08]} fxe6 {[%emt 0:00:02]} 17. Nh2 {[%emt 0:05:04]} dxc3 {[%emt 0:09:24]} 18. bxc3 {[%emt 0:00:18]} b4 {[%emt 0:00:03]} 19. Bb2 {[%emt 0:02:29]} bxc3 {[%emt 0:04:25]} 20. Bxc3 {[%emt 0:00:05]} Nd4 {[%emt 0:00:34]} 21. Bxd4 {[%emt 0:01:06]} Qxd4 {[%emt 0:04:17]} 22. Qc2 {[%emt 0:07:42]} Rad8 {[%emt 0:07:57]} 23. Rfd1 {[%emt 0:03:00]} Rb8 {[%emt 0:01:52]} 24. Nf3 {[%emt 0:01:10]} Qd6 {[%emt 0:00:17]} 25. Rab1 {[%emt 0:02:16]} Nd7 {[%emt 0:02:14]} 26. Rxb8 {[%emt 0:01:52]} Rxb8 {[%emt 0:00:25]} 27. Rb1 {[%emt 0:00:10]} Rb4 {[%emt 0:02:43]} 28. Nd2 {[%emt 0:07:03]} Bh4 {[%emt 0:03:40]} 29. Ne2 {[%emt 0:03:38]} Qb6 {[%emt 0:01:11]} 30. a3 {[%emt 0:05:56]} Rxb1+ {[%emt 0:03:09]} 31. Qxb1 {[%emt 0:04:47]} Qxb1+ {[%emt 0:01:20]} 32. Nxb1 {[%emt 0:00:01]} Bg5 {[%emt 0:00:23]} 33. Nec3 {[%emt 0:03:04]} Kf7 {[%emt 0:03:34]} 34. Kf1 {[%emt 0:00:51]} Ke7 {[%emt 0:01:42]} 35. Ke2 {[%emt 0:00:01]} Kd6 {[%emt 0:01:44]} 36. Nd2 {[%emt 0:00:09]} Bxd2 {[%emt 0:02:50]} 37. Kxd2 {[%emt 0:00:01]} Nb6 {[%emt 0:00:13]} 38. Nd1 {[%emt 0:02:24]} c4 {[%emt 0:00:18]} 39. Nb2 {[%emt 0:00:30]} cxd3 {[%emt 0:01:20]} 40. Kxd3 {[%emt 0:00:04]} Kc5 {[%emt 0:00:23]} 41. Kc3 {[%emt 0:00:03]} Nd7 {[%emt 0:00:23]} 42. Nd3+ {[%emt 0:01:52]} Kb5 {[%emt 0:00:19]} 43. Kb3 {[%emt 0:01:34]} a5 {[%emt 0:01:49]} 44. a4+ {[%emt 0:00:45]} Kc6 {[%emt 0:00:08]} 45. Kc3 {[%emt 0:00:53]} Kb6 {[%emt 0:02:04]} 46. Kc4 {[%emt 0:00:20]} Kc6 {[%emt 0:00:12]} 47. Kc3 {[%emt 0:01:00]} Kb6 {[%emt 0:00:18]} 48. Kc4 {[%emt 0:01:18]} Kc6 {[%emt 0:00:18]} 49. Kc3 {[%emt 0:01:31]} 1/2-1/2

[Event "1st Uppsala Festival 2022"]
[Site "Uppsala"]
[Date "2022.08.09"]
[Round "1.2"]
[White "Sorensen, Hampus"]
[Black "Johansson, Jan"]
[Result "0-1"]
[ECO "C41"]
[WhiteElo "2376"]
[BlackElo "2306"]
[Annotator "RC"]
[PlyCount "66"]
[EventDate "2022.08.09"]
[EventType "tourn"]
[EventCountry "SWE"]
[SourceTitle "playchess.com"]
[Source "ChessBase"]
[SourceQuality "1"]
[TimeControl "5400+30"]

1. e4 {[%emt 0:00:06]} e5 {[%emt 0:04:54]} 2. Nf3 {[%emt 0:00:14]} d6 {[%emt 0:00:07]} 3. d4 {[%emt 0:00:35]} exd4 {[%emt 0:00:06]} 4. Nxd4 {[%emt 0:00:35]} Nf6 {[%emt 0:00:11]} 5. Nc3 {[%emt 0:00:37]} Be7 {[%emt 0:00:07]} 6. g3 {[%emt 0:08:57]} d5 {[%emt 0:02:09]} 7. e5 {[%emt 0:03:25]} Ng4 {[%emt 0:00:45]} 8. Bf4 {[%emt 0:10:45]} g5 {[%emt 0:04:23]} 9. e6 {[%emt 0:08:23]} h5 {[%emt 0:03:06]} 10. f3 {[%emt 0:19:15]} gxf4 {[%emt 0:08:40]} 11. fxg4 {[%emt 0:00:20]} Bxe6 {[%emt 0:01:37]} 12. Nxe6 {[%emt 0:02:37]} fxe6 {[%emt 0:00:08]} 13. Qd4 {[%emt 0:12:16]} Bf6 {[%emt 0:30:31]} 14. Qxf4 {[%emt 0:01:17]} Qe7 {[%emt 0:02:24]} 15. Bd3 {[%emt 0:05:14]} Nc6 {[%emt 0:01:40]} 16. Bg6+ {[%emt 0:02:19]} Kd7 {[%emt 0:00:26]} 17. O-O {[%emt 0:00:43]} Raf8 {[%emt 0:01:34]} 18. Qa4 {[%emt 0:05:59]} Bd4+ {[%emt 0:00:41]} 19. Kh1 {[%emt 0:01:01]} hxg4 {[%emt 0:01:28]} 20. Ne2 {[%emt 0:04:11]} Qg7 {[%emt 0:05:02]} 21. Nxd4 {[%emt 0:01:59]} Qxd4 {[%emt 0:01:42]} 22. Qxd4 {[%emt 0:00:27]} Nxd4 {[%emt 0:00:09]} 23. Rxf8 {[%emt 0:00:29]} Rxf8 {[%emt 0:00:07]} 24. Kg2 {[%emt 0:04:29]} Kd6 {[%emt 0:03:20]} 25. Re1 {[%emt 0:01:27]} e5 {[%emt 0:06:49]} 26. c3 {[%emt 0:00:50]} Nf3 {[%emt 0:00:34]} 27. Rh1 {[%emt 0:00:02]} e4 {[%emt 0:00:37]} 28. Bh5 {[%emt 0:00:42]} Ne5 {[%emt 0:00:17]} 29. h3 {[%emt 0:00:09]} gxh3+ {[%emt 0:00:32]} 30. Kxh3 {[%emt 0:01:20]} c5 {[%emt 0:03:15]} 31. g4 {[%emt 0:01:08]} Nf3 {[%emt 0:00:56]} 32. Kg3 {[%emt 0:02:21]} e3 {[%emt 0:00:29]} 33. g5 {[%emt 0:00:20]} Nxg5 {[%emt 0:00:06]} 0-1

[Event "1st Uppsala Festival 2022"]
[Site "Uppsala"]
[Date "2022.08.09"]
[Round "1.4"]
[White "Lindberg, Bengt"]
[Black "Akesson, Ralf"]
[Result "1/2-1/2"]
[ECO "B15"]
[WhiteElo "2370"]
[BlackElo "2427"]
[Annotator "RC"]
[PlyCount "80"]
[EventDate "2022.08.09"]
[EventType "tourn"]
[EventCountry "SWE"]
[SourceTitle "playchess.com"]
[Source "ChessBase"]
[SourceQuality "1"]
[TimeControl "5400+30"]

1. e4 {[%emt 0:00:06]} c6 {[%emt 0:00:24]} 2. d4 {[%emt 0:00:17]} d5 {[%emt 0:00:06]} 3. Nc3 {[%emt 0:00:11]} dxe4 {[%emt 0:00:24]} 4. Nxe4 {[%emt 0:00:12]} Nf6 {[%emt 0:00:47]} 5. Nxf6+ {[%emt 0:00:34]} exf6 {[%emt 0:00:09]} 6. Bc4 {[%emt 0:01:49]} Bd6 {[%emt 0:02:14]} 7. Qe2+ {[%emt 0:00:54]} Qe7 {[%emt 0:02:58]} 8. Qxe7+ {[%emt 0:01:07]} Kxe7 {[%emt 0:00:33]} 9. Ne2 {[%emt 0:01:14]} Be6 {[%emt 0:06:16]} 10. Bxe6 {[%emt 0:01:40]} fxe6 {[%emt 0:01:23]} 11. Bf4 {[%emt 0:00:49]} Nd7 {[%emt 0:03:03]} 12. O-O-O {[%emt 0:05:58]} Rhe8 {[%emt 0:06:36]} 13. Bxd6+ {[%emt 0:06:32]} Kxd6 {[%emt 0:00:09]} 14. Rhe1 {[%emt 0:00:08]} Re7 {[%emt 0:07:19]} 15. Ng3 {[%emt 0:14:36]} Rae8 {[%emt 0:05:30]} 16. b3 {[%emt 0:02:50]} Kc7 {[%emt 0:03:09]} 17. Ne4 {[%emt 0:07:14]} f5 {[%emt 0:16:13]} 18. Nc3 {[%emt 0:00:28]} Nf6 {[%emt 0:01:12]} 19. f3 {[%emt 0:03:31]} Nd5 {[%emt 0:04:28]} 20. Nxd5+ {[%emt 0:06:50]} exd5 {[%emt 0:01:39]} 21. Rxe7+ {[%emt 0:00:16]} Rxe7 {[%emt 0:00:07]} 22. Kd2 {[%emt 0:00:29]} Kd6 {[%emt 0:00:41]} 23. Re1 {[%emt 0:04:18]} Rxe1 {[%emt 0:01:39]} 24. Kxe1 {[%emt 0:00:03]} f4 {[%emt 0:06:16]} 25. c3 {[%emt 0:20:23]} b5 {[%emt 0:04:45]} 26. b4 {[%emt 0:00:30]} Ke6 {[%emt 0:00:05]} 27. Ke2 {[%emt 0:00:39]} Kf5 {[%emt 0:00:12]} 28. Kf2 {[%emt 0:00:23]} g5 {[%emt 0:00:38]} 29. Kf1 {[%emt 0:00:55]} h5 {[%emt 0:01:20]} 30. Kf2 {[%emt 0:02:31]} h4 {[%emt 0:01:49]} 31. h3 {[%emt 0:00:09]} Kf6 {[%emt 0:00:05]} 32. Kf1 {[%emt 0:00:05]} Ke6 {[%emt 0:00:04]} 33. Ke1 {[%emt 0:00:07]} Kd6 {[%emt 0:00:03]} 34. Kd2 {[%emt 0:00:10]} Ke7 {[%emt 0:00:04]} 35. Ke1 {[%emt 0:00:11]} Kf7 {[%emt 0:00:04]} 36. Kf2 {[%emt 0:00:10]} Kg6 {[%emt 0:00:05]} 37. Ke2 {[%emt 0:00:10]} Kf6 {[%emt 0:00:03]} 38. Kf2 {[%emt 0:00:09]} Kf5 {[%emt 0:00:05]} 39. Ke2 {[%emt 0:00:21]} Ke6 {[%emt 0:00:04]} 40. Kf2 {[%emt 0:00:08]} Ke7 {[%emt 0:00:05]} 1/2-1/2

[Event "1st Uppsala Festival 2022"]
[Site "Uppsala"]
[Date "2022.08.09"]
[Round "1.5"]
[White "Stefansson, Vignir Vatnar"]
[Black "Trost, Edvin"]
[Result "1-0"]
[ECO "B22"]
[WhiteElo "2461"]
[BlackElo "2345"]
[Annotator "RC"]
[PlyCount "79"]
[EventDate "2022.08.09"]
[EventType "tourn"]
[EventCountry "SWE"]
[SourceTitle "playchess.com"]
[Source "ChessBase"]
[SourceQuality "1"]
[TimeControl "5400+30"]

1. e4 {[%emt 0:04:03]} c5 {[%emt 0:01:32]} 2. c3 {[%emt 0:00:57]} Nf6 {[%emt 0:00:52]} 3. e5 {[%emt 0:00:09]} Nd5 {[%emt 0:00:06]} 4. Nf3 {[%emt 0:00:33]} Nc6 {[%emt 0:01:20]} 5. Bc4 {[%emt 0:00:09]} Nb6 {[%emt 0:00:48]} 6. Bb3 {[%emt 0:00:09]} d5 {[%emt 0:03:35]} 7. exd6 {[%emt 0:00:09]} Qxd6 {[%emt 0:00:05]} 8. O-O {[%emt 0:00:12]} Be6 {[%emt 0:00:12]} 9. Bxe6 {[%emt 0:00:09]} Qxe6 {[%emt 0:00:04]} 10. a4 {[%emt 0:00:17]} Qd7 {[%emt 0:20:27]} 11. a5 {[%emt 0:00:16]} Nd5 {[%emt 0:00:08]} 12. a6 {[%emt 0:00:09]} b6 {[%emt 0:01:24]} 13. d4 {[%emt 0:01:14]} e6 {[%emt 0:03:02]} 14. Ne5 {[%emt 0:00:30]} Nxe5 {[%emt 0:03:05]} 15. dxe5 {[%emt 0:00:19]} Be7 {[%emt 0:03:06]} 16. Qg4 {[%emt 0:06:33]} g6 {[%emt 0:06:10]} 17. Nd2 {[%emt 0:09:34]} O-O {[%emt 0:06:51]} 18. Ne4 {[%emt 0:02:36]} Rad8 {[%emt 0:16:36]} 19. Bh6 {[%emt 0:08:38]} Rfe8 {[%emt 0:00:03]} 20. Qf3 {[%emt 0:10:21]} c4 {[%emt 0:06:08]} 21. Rad1 {[%emt 0:02:02]} Qc7 {[%emt 0:00:47]} 22. Qg3 {[%emt 0:02:00]} Qc8 {[%emt 0:09:31]} 23. h4 {[%emt 0:01:59]} f5 {[%emt 0:06:15]} 24. exf6 {[%emt 0:05:31]} Nxf6 {[%emt 0:00:03]} 25. Qe5 {[%emt 0:01:07]} Kf7 {[%emt 0:03:06]} 26. Ng5+ {[%emt 0:00:40]} Kg8 {[%emt 0:00:01]} 27. Nxe6 {[%emt 0:02:08]} Rxd1 {[%emt 0:05:43]} 28. Rxd1 {[%emt 0:00:06]} Nh5 {[%emt 0:00:23]} 29. Ng7 {[%emt 0:03:20]} Rd8 {[%emt 0:00:00]} 30. Rxd8+ {[%emt 0:00:40]} Qxd8 {[%emt 0:00:05]} 31. Qe6+ {[%emt 0:00:07]} Kh8 {[%emt 0:04:32]} 32. Nxh5 {[%emt 0:00:09]} gxh5 {[%emt 0:00:00]} 33. g3 {[%emt 0:00:48]} b5 {[%emt 0:00:00]} 34. Be3 {[%emt 0:00:19]} Bf6 {[%emt 0:00:00]} 35. Bxa7 {[%emt 0:00:20]} b4 {[%emt 0:00:00]} 36. Qxf6+ {[%emt 0:00:48]} Qxf6 {[%emt 0:00:00]} 37. Bd4 {[%emt 0:00:06]} Qxd4 {[%emt 0:00:00]} 38. cxd4 {[%emt 0:00:06]} c3 {[%emt 0:00:00]} 39. bxc3 {[%emt 0:00:22]} bxc3 {[%emt 0:00:00]} 40. a7 {[%emt 0:00:03]} 1-0

[Event "1st Uppsala Festival 2022"]
[Site "Uppsala"]
[Date "2022.08.09"]
[Round "2.1"]
[White "Sriram, Jha"]
[Black "Stefansson, Vignir Vatnar"]
[Result "0-1"]
[ECO "D36"]
[WhiteElo "2361"]
[BlackElo "2461"]
[Annotator "RC"]
[PlyCount "82"]
[EventDate "2022.08.09"]
[EventType "tourn"]
[EventCountry "SWE"]
[SourceTitle "playchess.com"]
[Source "ChessBase"]
[SourceQuality "1"]
[TimeControl "5400+30"]

1. d4 {[%emt 0:00:15]} Nf6 {[%emt 0:00:34]} 2. c4 {[%emt 0:00:27]} e6 {[%emt 0:00:09]} 3. Nc3 {[%emt 0:00:26]} d5 {[%emt 0:00:16]} 4. cxd5 {[%emt 0:00:41]} exd5 {[%emt 0:00:10]} 5. Bg5 {[%emt 0:00:12]} c6 {[%emt 0:00:08]} 6. e3 {[%emt 0:00:03]} h6 {[%emt 0:03:05]} 7. Bh4 {[%emt 0:00:09]} Be7 {[%emt 0:05:31]} 8. Qc2 {[%emt 0:00:46]} O-O {[%emt 0:00:21]} 9. Bd3 {[%emt 0:00:35]} Re8 {[%emt 0:00:28]} 10. Nge2 {[%emt 0:01:43]} Nbd7 {[%emt 0:00:21]} 11. O-O {[%emt 0:00:35]} Nh5 {[%emt 0:04:54]} 12. Bxe7 {[%emt 0:05:30]} Qxe7 {[%emt 0:00:07]} 13. Rae1 {[%emt 0:00:17]} g6 {[%emt 0:03:34]} 14. Ng3 {[%emt 0:10:59]} Nxg3 {[%emt 0:02:40]} 15. hxg3 {[%emt 0:00:02]} Nf6 {[%emt 0:00:59]} 16. Rb1 {[%emt 0:00:41]} Ng4 {[%emt 0:09:35]} 17. Rbe1 {[%emt 0:06:33]} Qg5 {[%emt 0:05:59]} 18. Be2 {[%emt 0:11:49]} Bf5 {[%emt 0:01:33]} 19. Qb3 {[%emt 0:00:56]} Re7 {[%emt 0:05:41]} 20. Bxg4 {[%emt 0:01:14]} Qxg4 {[%emt 0:00:20]} 21. Qa3 {[%emt 0:10:36]} Rae8 {[%emt 0:00:45]} 22. Rd1 {[%emt 0:02:16]} Rd7 {[%emt 0:06:58]} 23. Qxa7 {[%emt 0:11:52]} h5 {[%emt 0:00:26]} 24. e4 {[%emt 0:06:43]} dxe4 {[%emt 0:02:16]} 25. d5 {[%emt 0:00:04]} e3 {[%emt 0:08:48]} 26. fxe3 {[%emt 0:09:17]} Qxg3 {[%emt 0:00:29]} 27. Rf3 {[%emt 0:10:06]} Qg5 {[%emt 0:00:50]} 28. dxc6 {[%emt 0:02:48]} Rxd1+ {[%emt 0:01:54]} 29. Nxd1 {[%emt 0:00:01]} Be4 {[%emt 0:02:30]} 30. Rf2 {[%emt 0:00:20]} Bxc6 {[%emt 0:00:39]} 31. Qb6 {[%emt 0:02:03]} Rd8 {[%emt 0:04:34]} 32. Nc3 {[%emt 0:00:34]} Rd7 {[%emt 0:00:41]} 33. e4 {[%emt 0:00:44]} h4 {[%emt 0:00:16]} 34. Kh1 {[%emt 0:02:32]} h3 {[%emt 0:00:53]} 35. Re2 {[%emt 0:00:44]} hxg2+ {[%emt 0:01:16]} 36. Kg1 {[%emt 0:01:39]} Qh4 {[%emt 0:01:26]} 37. Kxg2 {[%emt 0:00:11]} Rd3 {[%emt 0:00:14]} 38. Kf1 {[%emt 0:01:44]} Qh3+ {[%emt 0:01:19]} 39. Kf2 {[%emt 0:01:13]} Qf3+ {[%emt 0:07:36]} 40. Kg1 {[%emt 0:00:25]} Rxc3 {[%emt 0:00:42]} 41. Qd8+ {[%emt 0:00:08]} Kg7 {[%emt 0:00:05]} 0-1

[Event "1st Uppsala Festival 2022"]
[Site "Uppsala"]
[Date "2022.08.09"]
[Round "2.2"]
[White "Trost, Edvin"]
[Black "Lindberg, Bengt"]
[Result "1-0"]
[ECO "E32"]
[WhiteElo "2345"]
[BlackElo "2370"]
[Annotator "RC"]
[PlyCount "133"]
[EventDate "2022.08.09"]
[EventType "tourn"]
[EventCountry "SWE"]
[SourceTitle "playchess.com"]
[Source "ChessBase"]
[SourceQuality "1"]
[TimeControl "5400+30"]

1. d4 {[%emt 0:00:03]} Nf6 {[%emt 0:00:13]} 2. c4 {[%emt 0:00:23]} e6 {[%emt 0:00:09]} 3. Nc3 {[%emt 0:00:09]} Bb4 {[%emt 0:00:11]} 4. Qc2 {[%emt 0:01:42]} b6 {[%emt 0:00:41]} 5. e4 {[%emt 0:00:57]} c5 {[%emt 0:00:13]} 6. d5 {[%emt 0:00:03]} Qe7 {[%emt 0:00:19]} 7. Nge2 {[%emt 0:00:03]} exd5 {[%emt 0:00:26]} 8. exd5 {[%emt 0:00:35]} d6 {[%emt 1:32:18]} 9. Bg5 Qe4 10. Qa4+ Nbd7 11. Qxb4 cxb4 12. Nxe4 Nxe4 13. Bf4 Ne5 {[%emt 0:00:00]} 14. Nd4 {[%emt 0:04:41]} Nd7 {[%emt 0:00:00]} 15. Ne2 {[%emt 0:21:07]} Ne5 {[%emt 0:00:00]} 16. Nd4 {[%emt 0:01:51]} Bd7 {[%emt 0:00:00]} 17. f3 {[%emt 0:06:13]} Nc5 18. Kd2 {[%emt 0:12:07]} O-O {[%emt 0:00:00]} 19. Re1 {[%emt 0:00:56]} Rfe8 {[%emt 0:00:00]} 20. Re3 {[%emt 0:00:49]} Rac8 {[%emt 0:00:00]} 21. Be2 {[%emt 0:02:34]} Nb7 {[%emt 0:00:00]} 22. b3 {[%emt 0:01:38]} Ng6 {[%emt 0:00:00]} 23. Rxe8+ {[%emt 0:00:45]} Rxe8 {[%emt 0:00:00]} 24. Be3 {[%emt 0:01:34]} a5 {[%emt 0:00:00]} 25. Ra1 {[%emt 0:02:12]} Nc5 {[%emt 0:00:00]} 26. g3 {[%emt 0:03:30]} Ne5 {[%emt 0:00:00]} 27. a3 {[%emt 0:05:30]} bxa3 {[%emt 0:00:00]} 28. Rxa3 {[%emt 0:00:04]} f5 {[%emt 0:00:00]} 29. Nc2 {[%emt 0:03:27]} Rc8 {[%emt 0:00:00]} 30. Kc3 {[%emt 0:13:17]} Kf8 {[%emt 0:00:00]} 31. Kd4 {[%emt 0:05:55]} Ke8 {[%emt 0:00:00]} 32. b4 {[%emt 0:01:04]} Na4 {[%emt 0:00:00]} 33. Bf4 {[%emt 0:01:11]} Nf7 {[%emt 0:00:00]} 34. Rb3 {[%emt 0:01:21]} axb4 {[%emt 0:01:39]} 35. Nxb4 {[%emt 0:00:42]} Ra8 {[%emt 0:01:43]} 36. Ra3 {[%emt 0:00:19]} Ra5 {[%emt 0:00:59]} 37. Nd3 {[%emt 0:02:43]} Ra6 {[%emt 0:03:48]} 38. Nb4 {[%emt 0:03:04]} Ra5 {[%emt 0:00:01]} 39. h4 {[%emt 0:02:32]} Kd8 {[%emt 0:01:31]} 40. Na2 {[%emt 0:02:07]} Nc5 {[%emt 0:00:47]} 41. Rxa5 {[%emt 0:00:18]} Nb3+ {[%emt 0:00:11]} 42. Kc3 {[%emt 0:00:15]} Nxa5 {[%emt 0:00:02]} 43. Be3 {[%emt 0:00:19]} Kc7 {[%emt 0:00:13]} 44. Bd4 {[%emt 0:00:04]} g6 {[%emt 0:00:18]} 45. Nb4 {[%emt 0:00:52]} Ne5 {[%emt 0:01:29]} 46. Na6+ {[%emt 0:02:21]} Kb7 {[%emt 0:00:07]} 47. Bxe5 {[%emt 0:00:20]} dxe5 {[%emt 0:00:47]} 48. c5 {[%emt 0:00:00]} bxc5 {[%emt 0:03:54]} 49. Nxc5+ {[%emt 0:00:02]} Kc7 {[%emt 0:00:26]} 50. Kb4 {[%emt 0:00:02]} Nb7 {[%emt 0:00:05]} 51. Nxb7 {[%emt 0:00:05]} Kxb7 {[%emt 0:00:04]} 52. Kc5 {[%emt 0:00:03]} Kc7 {[%emt 0:00:10]} 53. d6+ {[%emt 0:00:08]} Kd8 {[%emt 0:00:02]} 54. Kd5 {[%emt 0:00:07]} e4 {[%emt 0:00:07]} 55. fxe4 {[%emt 0:00:13]} fxe4 {[%emt 0:00:02]} 56. Kxe4 {[%emt 0:00:06]} Ke8 {[%emt 0:01:18]} 57. Ke5 {[%emt 0:00:20]} Ba4 {[%emt 0:03:01]} 58. Bg4 {[%emt 0:00:31]} Bc2 {[%emt 0:00:30]} 59. Kf6 {[%emt 0:00:14]} h6 {[%emt 0:01:01]} 60. Be6 {[%emt 0:00:30]} Kd8 {[%emt 0:00:18]} 61. g4 {[%emt 0:01:19]} Bd3 {[%emt 0:00:26]} 62. Kg7 {[%emt 0:00:08]} h5 {[%emt 0:00:20]} 63. g5 {[%emt 0:00:24]} Be4 {[%emt 0:00:12]} 64. Kf6 {[%emt 0:00:03]} Bd3 {[%emt 0:00:12]} 65. Bf7 {[%emt 0:00:12]} Kd7 {[%emt 0:00:03]} 66. Bxg6 {[%emt 0:00:06]} Be2 {[%emt 0:00:02]} 67. Ke5 {[%emt 0:00:04]} 1-0

[Event "1st Uppsala Festival 2022"]
[Site "Uppsala"]
[Date "2022.08.09"]
[Round "2.3"]
[White "Peng, Li Min"]
[Black "Akesson, Ralf"]
[Result "1-0"]
[ECO "D31"]
[WhiteElo "2516"]
[BlackElo "2427"]
[Annotator "RC"]
[PlyCount "77"]
[EventDate "2022.08.09"]
[EventType "tourn"]
[EventCountry "SWE"]
[SourceTitle "playchess.com"]
[Source "ChessBase"]
[SourceQuality "1"]
[TimeControl "5400+30"]

1. c4 {[%emt 0:00:01]} e6 {[%emt 0:05:09]} 2. Nc3 {[%emt 0:00:41]} d5 {[%emt 0:00:11]} 3. d4 {[%emt 0:00:11]} Be7 {[%emt 0:00:28]} 4. cxd5 {[%emt 0:00:05]} exd5 {[%emt 0:00:09]} 5. Bf4 {[%emt 0:00:02]} c6 {[%emt 0:00:31]} 6. e3 {[%emt 0:00:52]} Bd6 7. Qf3 {[%emt 0:00:30]} Nf6 8. Bd3 {[%emt 0:00:30]} Bg4 9. Qg3 {[%emt 0:00:30]} Bxf4 10. Qxf4 {[%emt 0:00:30]} Nbd7 11. Nf3 {[%emt 0:00:30]} Bh5 12. Nh4 {[%emt 0:00:30]} Bg6 13. Nxg6 {[%emt 0:00:30]} hxg6 14. h4 {[%emt 0:00:30]} Qb8 15. Qf3 {[%emt 0:00:30]} Qd6 16. g4 {[%emt 0:00:30]} Rf8 {[%emt 0:53:27]} 17. O-O-O {[%emt 0:24:28]} O-O-O {[%emt 0:00:35]} 18. Kb1 {[%emt 0:00:31]} Kb8 {[%emt 0:06:25]} 19. h5 {[%emt 0:03:33]} gxh5 {[%emt 0:06:26]} 20. gxh5 {[%emt 0:00:06]} Ne8 {[%emt 0:05:16]} 21. Ne2 {[%emt 0:03:29]} Qh6 {[%emt 0:00:46]} 22. Rdg1 {[%emt 0:00:06]} Nd6 {[%emt 0:04:33]} 23. Qg3 {[%emt 0:00:12]} Rg8 {[%emt 0:00:48]} 24. Nf4 {[%emt 0:05:57]} Nf6 {[%emt 0:02:41]} 25. Ng6 {[%emt 0:01:38]} Ka8 {[%emt 0:06:19]} 26. Ne5 {[%emt 0:01:14]} Nfe4 {[%emt 0:02:25]} 27. Qg2 {[%emt 0:00:30]} f6 {[%emt 0:01:16]} 28. Ng4 {[%emt 0:02:01]} Qh8 {[%emt 0:00:05]} 29. f3 {[%emt 0:06:15]} Ng5 {[%emt 0:00:09]} 30. h6 {[%emt 0:00:10]} Rgf8 {[%emt 0:03:29]} 31. Ne5 {[%emt 0:11:23]} gxh6 {[%emt 0:02:11]} 32. Ng6 {[%emt 0:00:08]} Qh7 {[%emt 0:00:18]} 33. f4 {[%emt 0:00:44]} Ngf7 {[%emt 0:01:00]} 34. e4 {[%emt 0:00:44]} dxe4 {[%emt 0:01:32]} 35. Nxf8 {[%emt 0:00:06]} Rxf8 {[%emt 0:00:02]} 36. Bc2 {[%emt 0:00:08]} Qf5 {[%emt 0:00:51]} 37. Qg7 {[%emt 0:02:01]} Re8 {[%emt 0:00:29]} 38. Rg6 {[%emt 0:00:16]} Re6 {[%emt 0:01:04]} 39. Qxf7 {[%emt 0:01:40]} 1-0

[Event "1st Uppsala Festival 2022"]
[Site "Uppsala"]
[Date "2022.08.09"]
[Round "2.4"]
[White "Larkin, Vladyslav"]
[Black "Sorensen, Hampus"]
[Result "1/2-1/2"]
[ECO "E51"]
[WhiteElo "2455"]
[BlackElo "2376"]
[Annotator "RC"]
[PlyCount "86"]
[EventDate "2022.08.09"]
[EventType "tourn"]
[EventCountry "SWE"]
[SourceTitle "playchess.com"]
[Source "ChessBase"]
[SourceQuality "1"]
[TimeControl "5400+30"]

1. d4 {[%emt 0:00:04]} Nf6 {[%emt 0:00:27]} 2. c4 {[%emt 0:00:12]} e6 {[%emt 0:00:27]} 3. Nc3 {[%emt 0:00:21]} Bb4 {[%emt 0:00:27]} 4. e3 {[%emt 0:01:56]} O-O {[%emt 0:01:55]} 5. Bd2 {[%emt 1:30:27]} d5 6. Nf3 b6 7. cxd5 exd5 8. Bd3 Ba6 9. Bxa6 Nxa6 10. O-O c6 11. Rc1 Qc8 12. Ne5 Qb7 13. f3 Bd6 14. Be1 Nd7 15. Bg3 {[%emt 0:00:00]} Nf6 {[%emt 0:33:00]} 16. Be1 {[%emt 0:00:00]} Nd7 {[%emt 0:02:30]} 17. Bg3 {[%emt 0:00:00]} Nxe5 {[%emt 0:04:09]} 18. dxe5 {[%emt 0:00:00]} Be7 {[%emt 0:00:17]} 19. a3 {[%emt 0:00:00]} Nc7 {[%emt 0:02:07]} 20. Ne2 {[%emt 0:00:00]} c5 {[%emt 0:04:54]} 21. f4 {[%emt 0:00:00]} f6 {[%emt 0:02:07]} 22. exf6 {[%emt 0:00:00]} Bxf6 {[%emt 0:00:26]} 23. f5 {[%emt 0:00:00]} Bxb2 {[%emt 0:04:40]} 24. Rb1 {[%emt 0:00:00]} Bf6 {[%emt 0:01:40]} 25. Bd6 {[%emt 0:00:00]} Rfe8 {[%emt 0:02:11]} 26. Bxc5 {[%emt 0:00:00]} Re4 {[%emt 0:01:29]} 27. Bd4 {[%emt 0:00:00]} Ne8 {[%emt 0:00:34]} 28. Nf4 {[%emt 0:00:00]} Bxd4 {[%emt 0:02:44]} 29. exd4 {[%emt 0:00:00]} Nd6 {[%emt 0:02:15]} 30. Qh5 {[%emt 0:00:00]} Qf7 {[%emt 0:08:23]} 31. f6 {[%emt 0:00:00]} Qxh5 {[%emt 0:02:07]} 32. Nxh5 {[%emt 0:00:00]} Rxd4 {[%emt 0:00:09]} 33. fxg7 {[%emt 0:00:00]} Rh4 {[%emt 0:00:25]} 34. Nf4 {[%emt 0:00:00]} Kxg7 {[%emt 0:00:46]} 35. Nxd5 {[%emt 0:00:00]} Rf8 {[%emt 0:01:04]} 36. Rxf8 {[%emt 0:00:00]} Kxf8 {[%emt 0:00:01]} 37. Rf1+ {[%emt 0:00:00]} Nf7 {[%emt 0:00:29]} 38. Nf4 {[%emt 0:00:00]} b5 {[%emt 0:00:51]} 39. g3 {[%emt 0:00:00]} Rh6 {[%emt 0:00:14]} 40. Rc1 {[%emt 0:00:00]} Ra6 {[%emt 0:00:54]} 41. Rc8+ {[%emt 0:00:00]} Ke7 {[%emt 0:01:48]} 42. Rc7+ {[%emt 0:00:00]} Kf6 {[%emt 0:00:12]} 43. Nh5+ {[%emt 0:00:00]} Ke5 {[%emt 0:00:37]} 1/2-1/2